bitfinex/quotes_ETHUSD_20230102
["timestamp","ask_amount","ask_price","bid_price","bid_amount"]
[1672701650215,3.69009019,1217.1,1217.0,11.2986968]
[1672701650418,3.69009019,1217.1,1217.0,27.7325368]
[1672701652333,3.69009019,1217.1,1217.0,19.5156168]
[1672701656213,3.68655642,1217.1,1217.0,19.5156168]
[1672701660784,0.066,1217.2,1217.0,27.7325368]
[1672701660935,3.07844291,1217.1,1217.0,32.30353348]
[1672701661161,3.07844291,1217.1,1217.0,32.31427912]
[1672701661375,5.54122635,1217.1,1217.0,33.99166294]
[1672701661949,5.54122635,1217.1,1217.0,35.40566294]
[1672701661950,2.46278344,1217.1,1217.0,35.40566294]
[1672701663827,2.46278344,1217.1,1217.0,39.55452408]
[1672701664251,5.60722635,1217.2,1217.0,39.55452408]
[1672701664415,2.46278344,1217.1,1217.0,38.12952408]
[1672701664627,5.60722635,1217.2,1217.0,39.55052408]
[1672701664855,5.54122635,1217.2,1217.1,5.414]
[1672701665101,5.54122635,1217.2,1217.1,29.28620425]
[1672701665835,5.54122635,1217.2,1217.1,25.28620425]
[1672701666280,5.54122635,1217.2,1217.1,33.50245425]
[1672701666411,5.54122635,1217.2,1217.1,12.85370425]
[1672701666626,5.54122635,1217.2,1217.1,37.50245425]
[1672701666858,5.54122635,1217.2,1217.1,33.50245425]
[1672701668525,5.53807867,1217.2,1217.1,33.50245425]
[1672701668757,3.07844291,1217.2,1217.1,33.50245425]
[1672701672899,5.53756723,1217.2,1217.1,33.50245425]
[1672701673543,3.07844291,1217.2,1217.1,33.50245425]
[1672701673753,3.07844291,1217.2,1217.1,25.28620425]
[1672701674438,3.07844291,1217.2,1217.1,20.93185184]
[1672701674641,5.53743521,1217.2,1217.1,20.93185184]
[1672701675107,5.53743521,1217.2,1217.1,29.14810184]
[1672701677854,5.53743521,1217.2,1217.1,27.73410184]
[1672701678901,3.07844291,1217.2,1217.1,3.08535184]
[1672701679117,3.07844291,1217.2,1217.0,11.5649713]
[1672701679118,0.00261483,1217.1,1217.0,11.5649713]
[1672701679307,3.07586079,1217.1,1217.0,27.9980813]
[1672701679490,5.53452708,1217.1,1217.0,27.9980813]
[1672701680778,2.46128112,1217.1,1217.0,27.9980813]
[1672701681175,2.46128112,1217.1,1217.0,32.65774843]
[1672701684371,2.46128112,1217.1,1217.0,27.99507149]
[1672701684586,5.53452708,1217.1,1217.0,27.99507149]
[1672701688320,2.46128112,1217.1,1217.0,27.99507149]
[1672701688971,5.53452708,1217.1,1217.0,27.99507149]
[1672701689408,2.46128112,1217.1,1217.0,27.99507149]
[1672701689730,5.53452708,1217.1,1217.0,27.99507149]
[1672701690955,2.46128112,1217.1,1217.0,27.99507149]
[1672701691347,5.53452708,1217.1,1217.0,27.99507149]
[1672701692196,2.46128112,1217.1,1217.0,27.99507149]
[1672701692680,5.53452708,1217.1,1217.0,27.99507149]
[1672701693265,2.46128112,1217.1,1217.0,27.99507149]
[1672701698000,2.46128112,1217.1,1217.0,29.69487089]
[1672701700154,2.46128112,1217.1,1217.0,33.84373203]
[1672701700492,5.53452708,1217.1,1217.0,33.84373203]
[1672701704739,5.53452708,1217.1,1217.0,35.26473203]
[1672701705236,2.46128112,1217.1,1217.0,35.26473203]
[1672701705922,5.53452708,1217.1,1217.0,35.26473203]
[1672701706359,2.46128112,1217.1,1217.0,35.26473203]
[1672701706574,5.53452708,1217.1,1217.0,35.26473203]
[1672701706763,5.53452708,1217.1,1217.0,35.26214422]
[1672701707473,5.53452708,1217.1,1217.0,1.50635184]
[1672701707684,0.00261483,1217.1,1217.0,8.21692]
[1672701707895,5.08289427,1217.1,1217.0,0.08535184]
[1672701708173,5.08202537,1217.1,1217.0,8.21692]
[1672701708378,7.77988671,1217.1,1217.0,0.08535184]
[1672701708541,3.52086913,1217.1,1216.9,24.73696184]
[1672701708753,3.69071062,1217.0,1216.9,24.73696184]
[1672701708961,3.69071062,1217.0,1216.9,16.51969184]
[1672701709431,7.27757975,1217.1,1216.9,16.51969184]
[1672701709738,7.27757975,1217.1,1216.9,24.73729184]
[1672701709739,3.07559389,1217.0,1216.9,24.73729184]
[1672701709931,5.5362456,1217.0,1216.9,24.73729184]
[1672701710138,5.5362456,1217.0,1216.9,27.73729184]
[1672701719056,2.46065171,1217.0,1216.9,27.73729184]
[1672701719695,5.5362456,1217.0,1216.9,27.73729184]
[1672701727594,5.5362456,1217.0,1216.9,27.73495067]
[1672701732622,3.07559389,1217.0,1216.9,19.51735067]
[1672701735388,3.76282718,1217.0,1216.9,19.51735067]
[1672701739898,3.07559389,1217.0,1216.9,19.51735067]
[1672701740615,5.53596229,1217.0,1216.9,19.51735067]
[1672701741560,5.53596229,1217.0,1216.9,27.73495067]
[1672701746623,3.07559389,1217.0,1216.9,27.73495067]
[1672701747752,3.79412419,1217.1,1216.9,27.73495067]
[1672701748051,6.10768837,1217.1,1217.0,3.0]
[1672701748241,6.10768837,1217.1,1217.0,2.99698453]
[1672701748548,2.41697775,1217.1,1217.0,2.99698453]
[1672701752189,6.67599533,1217.1,1217.0,2.99698453]
[1672701753369,6.67799533,1217.1,1217.0,2.99698453]
[1672701753586,6.67599533,1217.1,1217.0,2.99698453]
[1672701761847,6.67599533,1217.1,1216.9,0.08535184]
[1672701761848,36.24774533,1217.1,1216.9,0.08535184]
[1672701762061,36.24774533,1217.1,1216.8,3.0]
[1672701762062,4.25901758,1217.0,1216.8,3.0]
[1672701762293,3.69212276,1216.9,1216.8,3.0]
[1672701762843,7.38289729,1217.0,1216.8,3.0]
[1672701763091,3.07652963,1216.9,1216.8,3.0]
[1672701763208,3.07652963,1216.9,1216.8,11.21825]
[1672701763418,7.38289729,1217.0,1216.8,3.08535184]
[1672701763649,7.31689729,1217.0,1216.8,3.0]
[1672701765109,3.07614221,1216.9,1216.8,3.0]
[1672701765322,7.38289729,1217.0,1216.8,3.0]
[1672701765668,15.53396729,1217.0,1216.8,3.0]
[1672701765875,3.07635464,1216.9,1216.8,3.0]
[1672701766089,15.60004729,1217.0,1216.8,3.0]
[1672701766294,3.69212276,1216.9,1216.8,3.0]
[1672701766948,6.49977725,1216.9,1216.8,3.0]
[1672701767319,14.71737725,1216.9,1216.8,3.0]
[1672701767537,22.93497725,1216.9,1216.8,3.0]
[1672701768460,6.49977725,1216.9,1216.8,3.0]
[1672701768675,3.69212276,1216.9,1216.8,3.0]
[1672701769145,3.69212276,1216.9,1216.8,2.99691906]
[1672701771045,8.61512276,1216.9,1216.8,19.43345906]
[1672701771203,8.61512276,1216.9,1216.8,3.0822709]
[1672701771421,8.61512276,1216.9,1216.8,2.99691906]
[1672701771621,9.91287815,1216.9,1216.8,2.99691906]
[1672701772791,16.82558105,1216.9,1216.7,0.08535184]
[1672701772999,16.82558105,1216.9,1216.5,0.08535184]
[1672701773000,6.96341357,1216.8,1216.5,0.08535184]
[1672701773243,3.68824761,1216.6,1216.3,16.04745382]
[1672701773459,3.68824761,1216.6,1216.3,7.91173566]
[1672701773460,5.532575,1216.5,1216.3,7.91173566]
[1672701773613,5.532575,1216.5,1216.3,16.13320566]
[1672701774090,0.04053737,1216.4,1216.3,24.35485566]
[1672701774309,0.04053737,1216.4,1216.3,27.35485566]
[1672701774665,0.04053737,1216.4,1216.3,19.78085566]
[1672701774876,0.04053737,1216.4,1216.3,28.00250566]
[1672701778780,0.04053737,1216.4,1216.3,27.95250566]
[1672701778992,0.04053737,1216.4,1216.3,29.37350566]
[1672701780780,0.04053737,1216.4,1216.3,37.04346223]
[1672701781016,10.455575,1216.7,1216.4,4.0]
[1672701781206,10.455575,1216.7,1216.5,27.6609]
[1672701781413,10.455575,1216.7,1216.5,27.74625184]
[1672701781836,7.38192222,1216.7,1216.5,27.74625184]
[1672701782072,10.455575,1216.7,1216.5,27.74625184]
[1672701782508,7.38192222,1216.7,1216.5,27.74625184]
[1672701782894,10.455575,1216.7,1216.5,27.74625184]
[1672701783450,7.38192222,1216.7,1216.5,27.74625184]
[1672701783928,10.455575,1216.7,1216.5,27.74625184]
[1672701784138,7.38192222,1216.7,1216.5,27.74625184]
[1672701785125,10.455575,1216.7,1216.5,27.74625184]
[1672701785343,7.38192222,1216.7,1216.5,27.74625184]
[1672701788331,2.45892222,1216.6,1216.5,19.52595184]
[1672701788648,2.45892222,1216.6,1216.5,11.30565184]
[1672701790029,12.6657598,1216.7,1216.5,19.52595184]
[1672701790403,17.37481669,1216.6,1216.5,0.08535184]
[1672701790722,17.37481669,1216.6,1216.3,0.08535184]
[1672701790723,4.923,1216.4,1216.3,0.08535184]
[1672701791029,10.4410713,1216.4,1216.1,25.44588864]
[1672701791251,10.4410713,1216.4,1216.1,17.22304864]
[1672701792231,0.01013851,1216.3,1216.1,25.44604864]
[1672701794042,0.01013851,1216.3,1216.2,4.0]
[1672701794378,0.01013851,1216.3,1216.2,16.44466]
[1672701794611,0.01013851,1216.3,1216.2,16.53001184]
[1672701795366,7.4128897,1216.4,1216.2,16.53001184]
[1672701795667,9.6528643,1216.4,1216.2,16.53001184]
[1672701796142,12.71845947,1216.4,1216.2,8.30768184]
[1672701796351,9.6528643,1216.4,1216.2,8.30768184]
[1672701796720,9.6528643,1216.4,1216.2,16.53001184]
[1672701797089,9.6528643,1216.4,1216.2,8.30768184]
[1672701798471,7.20038817,1216.4,1216.2,8.30768184]
[1672701800732,7.20038817,1216.4,1216.2,20.53001184]
[1672701800905,7.20038817,1216.4,1216.2,28.75234184]
[1672701801360,4.96041357,1216.4,1216.2,28.75234184]
[1672701801548,0.03741357,1216.4,1216.3,4.0]
[1672701801758,0.03741357,1216.4,1216.3,20.4433]
[1672701802011,0.03741357,1216.4,1216.3,16.52865184]
[1672701803998,0.03741357,1216.4,1216.3,16.5249512]
[1672701805203,0.03741357,1216.4,1216.3,8.3033012]
[1672701805664,2.4898897,1216.4,1216.3,8.3033012]
[1672701806495,16.68830819,1216.4,1216.3,0.08535184]
[1672701806736,8.46733819,1216.4,1216.1,21.22328864]
[1672701806948,8.46733819,1216.4,1216.2,16.44465]
[1672701807166,8.46733819,1216.4,1216.2,16.53000184]
[1672701807534,8.46733819,1216.4,1216.2,24.75233184]
[1672701808097,0.01013851,1216.3,1216.2,24.75233184]
[1672701809124,8.46733819,1216.4,1216.2,24.75233184]
[1672701809542,8.46733819,1216.4,1216.2,0.08535184]
[1672701809755,8.46733819,1216.4,1216.2,8.22432]
[1672701809999,11.53293336,1216.4,1216.2,8.30767184]
[1672701812804,11.53293336,1216.4,1216.2,24.75233184]
[1672701813932,11.53293336,1216.4,1216.2,0.08535184]
[1672701814141,11.53293336,1216.4,1216.1,26.30452725]
[1672701814142,2.45247613,1216.3,1216.1,26.30452725]
[1672701815335,11.59893336,1216.4,1216.1,26.30452725]
[1672701815523,11.53293336,1216.4,1216.1,26.30452725]
[1672701818037,2.45247613,1216.3,1216.1,26.30452725]
[1672701818246,11.59893336,1216.4,1216.1,18.08188725]
[1672701818511,2.45247613,1216.3,1216.1,18.08188725]
[1672701818729,11.59893336,1216.4,1216.1,26.30488725]
[1672701818875,11.53293336,1216.4,1216.1,26.30488725]
[1672701819447,2.45247613,1216.3,1216.1,26.30488725]
[1672701819777,11.59893336,1216.4,1216.1,26.30488725]
[1672701819989,11.53293336,1216.4,1216.1,26.30488725]
[1672701821117,2.45247613,1216.3,1216.1,26.30488725]
[1672701821495,11.59893336,1216.4,1216.1,26.30488725]
[1672701821707,11.53293336,1216.4,1216.1,26.30488725]
[1672701822338,2.45247613,1216.3,1216.1,26.30488725]
[1672701824245,11.59893336,1216.4,1216.1,26.30488725]
[1672701824461,2.45247613,1216.3,1216.1,26.30488725]
[1672701825089,2.45247613,1216.3,1216.1,27.29905083]
[1672701826351,5.5180713,1216.3,1216.1,27.29905083]
[1672701827448,5.5840713,1216.4,1216.2,27.91710123]
[1672701827667,2.45247613,1216.4,1216.3,1.425]
[1672701827808,5.5840713,1216.5,1216.3,30.34233382]
[1672701828161,2.45247613,1216.4,1216.3,30.42768566]
[1672701828344,7.09861983,1216.6,1216.5,2.11156475]
[1672701828559,3.67879378,1216.6,1216.5,10.33184475]
[1672701828749,3.67879378,1216.6,1216.5,10.41719659]
[1672701831432,3.67631189,1216.6,1216.5,10.41719659]
[1672701832060,3.67631189,1216.6,1216.5,2.19691659]
[1672701832235,3.67631189,1216.6,1216.5,2.11156475]
[1672701840758,8.66531189,1216.7,1216.5,2.11156475]
[1672701840965,12.5204658,1216.7,1216.5,2.11156475]
[1672701841428,3.67631189,1216.6,1216.5,2.11156475]
[1672701841791,12.5864658,1216.7,1216.5,2.11156475]
[1672701842160,3.67631189,1216.6,1216.5,2.11156475]
[1672701851086,3.67631189,1216.6,1216.5,10.33186475]
[1672701851339,3.67631189,1216.6,1216.5,10.41721659]
[1672701852341,3.67631189,1216.6,1216.5,2.19691659]
[1672701852594,3.67631189,1216.6,1216.5,2.11156475]
[1672701852766,3.67631189,1216.6,1216.5,2.10769864]
[1672701853446,3.67631189,1216.6,1216.5,10.32799864]
[1672701853658,3.67631189,1216.6,1216.5,10.41335048]
[1672701855872,3.67631189,1216.6,1216.5,2.19305048]
[1672701856057,3.67631189,1216.6,1216.5,2.10769864]
[1672701857522,3.67631189,1216.6,1216.5,10.32799864]
[1672701857737,3.67631189,1216.6,1216.5,10.41335048]
[1672701859309,3.67631189,1216.6,1216.5,2.19305048]
[1672701859521,3.67631189,1216.6,1216.5,2.10769864]
[1672701860554,7.67631189,1216.6,1216.5,2.10769864]
[1672701860760,15.90587864,1216.6,1216.5,2.10769864]
[1672701860970,20.12549864,1216.6,1216.5,2.10769864]
[1672701861449,20.16291221,1216.6,1216.5,2.10769864]
[1672701862865,15.85995666,1216.6,1216.5,2.10769864]
[1672701863074,20.16286582,1216.6,1216.5,2.10769864]
[1672701863339,33.38248582,1216.6,1216.5,2.10769864]
[1672701864651,29.07957666,1216.6,1216.5,2.10769864]
[1672701864861,33.38237677,1216.6,1216.5,2.10769864]
[1672701865129,26.58475677,1216.6,1216.5,2.10769864]
[1672701866921,34.80437677,1216.6,1216.5,2.10769864]
[1672701867276,26.58475677,1216.6,1216.5,2.10769864]
[1672701867489,34.80437677,1216.6,1216.5,2.10769864]
[1672701868915,26.58475677,1216.6,1216.5,2.10769864]
[1672701869707,34.80437677,1216.6,1216.5,2.10769864]
[1672701870023,26.58475677,1216.6,1216.5,2.10769864]
[1672701873854,26.58475677,1216.6,1216.5,2.10504053]
[1672701874016,21.58475677,1216.6,1216.5,2.10504053]
[1672701874210,38.02399677,1216.6,1216.5,2.10504053]
[1672701874420,29.80437677,1216.6,1216.5,2.10504053]
[1672701874633,26.58475677,1216.6,1216.5,2.10504053]
[1672701875218,30.96361791,1216.6,1216.5,2.10504053]
[1672701875433,39.18323791,1216.6,1216.5,2.10504053]
[1672701877949,43.1000578,1216.6,1216.5,2.10504053]
[1672701879926,48.13102232,1216.6,1216.5,2.10504053]
[1672701880788,45.1441578,1216.6,1216.5,2.10504053]
[1672701881107,51.22000356,1216.6,1216.5,2.10504053]
[1672701881525,45.1441578,1216.6,1216.5,2.10504053]
[1672701881675,50.22251131,1216.6,1216.5,2.10504053]
[1672701889754,45.22251131,1216.6,1216.5,2.10504053]
[1672701890876,50.22251131,1216.6,1216.5,2.10504053]
[1672701894568,45.1441578,1216.6,1216.5,2.10504053]
[1672701894985,51.22000356,1216.6,1216.5,2.10504053]
[1672701897709,50.22212517,1216.6,1216.5,2.10504053]
[1672701898590,50.22212517,1216.6,1216.5,2.10204885]
[1672701898797,33.78288517,1216.6,1216.5,2.10204885]
[1672701899039,14.22387419,1216.6,1216.5,2.10204885]
[1672701899346,14.22387419,1216.6,1216.5,10.32234885]
[1672701899347,13.61155614,1216.6,1216.5,10.32234885]
[1672701899511,13.61155614,1216.6,1216.5,10.40770069]
[1672701900300,13.61155614,1216.6,1216.5,2.18740069]
[1672701900481,13.60938564,1216.6,1216.5,2.10204885]
[1672701900861,13.60938564,1216.6,1216.5,26.76294885]
[1672701900862,3.68855614,1216.6,1216.5,26.76294885]
[1672701901077,3.68855614,1216.6,1216.5,32.22974696]
[1672701901078,3.0725989,1216.6,1216.5,32.22974696]
[1672701901340,3.75455614,1216.7,1216.5,32.22974696]
[1672701901650,3.68855614,1216.7,1216.6,11.05662]
[1672701901801,8.68855614,1216.7,1216.6,2.92235184]
[1672701902014,3.68855614,1216.7,1216.6,2.837]
[1672701903964,3.68855614,1216.7,1216.6,19.27624]
[1672701904278,3.68855614,1216.7,1216.6,11.14197184]
[1672701905752,3.68855614,1216.7,1216.6,19.36159184]
[1672701906496,3.68855614,1216.7,1216.6,11.14197184]
[1672701906806,8.72396971,1216.8,1216.6,11.14197184]
[1672701906969,8.65796971,1216.8,1216.7,1.425]
[1672701907181,13.65796971,1216.8,1216.7,1.425]
[1672701908428,13.65164097,1216.8,1216.7,1.425]
[1672701911758,13.6142274,1216.8,1216.7,1.425]
[1672701918637,8.6142274,1216.8,1216.7,1.425]
[1672701919011,16.8324974,1216.8,1216.7,1.425]
[1672701919473,8.6142274,1216.8,1216.7,1.425]
[1672701919685,13.6142274,1216.8,1216.7,1.425]
[1672701922521,13.6142274,1216.8,1216.7,1.42102232]
[1672701927708,13.6142274,1216.8,1216.6,17.93627184]
[1672701927919,3.06532216,1216.7,1216.6,17.93627184]
[1672701934799,3.06532216,1216.7,1216.6,9.71667184]
[1672701935018,3.6822274,1216.7,1216.6,9.71667184]
[1672701936023,3.6822274,1216.7,1216.6,1.49735184]
[1672701936241,3.6822274,1216.7,1216.6,1.412]
[1672701936594,20.1201274,1216.7,1216.6,1.412]
[1672701936930,3.6822274,1216.7,1216.6,1.412]
[1672701937434,20.1201274,1216.7,1216.6,1.412]
[1672701937622,3.6822274,1216.7,1216.6,1.412]
[1672701937817,8.6142274,1216.7,1216.6,1.412]
[1672701938952,9.23287419,1216.7,1216.6,1.412]
[1672701939635,4.932,1216.7,1216.6,1.412]
[1672701940474,9.24085282,1216.7,1216.6,1.412]
[1672701940743,4.932,1216.7,1216.6,1.412]
[1672701941062,13.15095,1216.7,1216.6,1.412]
[1672701941503,17.45967781,1216.7,1216.6,1.412]
[1672701942656,25.67862781,1216.7,1216.6,1.412]
[1672701943104,17.45967781,1216.7,1216.6,1.412]
[1672701943826,20.54189633,1216.7,1216.5,1.421]
[1672701944035,28.76039416,1216.7,1216.5,1.421]
[1672701944258,4.30827564,1216.6,1216.5,1.421]
[1672701944497,17.52522564,1216.7,1216.5,1.41763384]
[1672701944693,4.14886114,1216.6,1216.5,1.41763384]
[1672701945025,32.16698219,1216.6,1216.4,0.08535184]
[1672701945173,15.00423812,1216.5,1216.3,1.424]
[1672701945383,8.62406094,1216.4,1216.2,26.40771184]
[1672701945657,5.53809487,1216.3,1216.2,26.40771184]
[1672701945810,5.53809487,1216.3,1216.2,29.40771184]
[1672701946019,5.53809487,1216.3,1216.2,29.16674184]
[1672701946235,5.54823338,1216.3,1216.2,29.16674184]
[1672701948476,2.47151401,1216.3,1216.2,29.16674184]
[1672701955375,2.47151401,1216.3,1216.2,28.86674184]
[1672701956309,5.54823338,1216.3,1216.2,28.86674184]
[1672701956788,2.47151401,1216.3,1216.2,28.86674184]
[1672701958562,2.46901898,1216.3,1216.2,29.16374184]
[1672701961770,2.46901898,1216.3,1216.2,28.86374184]
[1672701968507,2.46901898,1216.3,1216.2,20.64141184]
[1672701968874,2.46901898,1216.3,1216.2,28.86374184]
[1672701970343,2.46901898,1216.3,1216.2,20.64141184]
[1672701971597,2.46901898,1216.3,1216.2,28.86374184]
[1672701972301,5.54573835,1216.3,1216.2,20.64141184]
[1672701972710,5.54573835,1216.3,1216.2,28.86374184]
[1672701976587,3.08685788,1216.3,1216.2,28.86374184]
[1672701977023,5.54247633,1216.3,1216.2,28.86374184]
[1672701977478,5.54247984,1216.3,1216.2,28.86374184]
[1672701978493,3.08685788,1216.3,1216.2,28.86374184]
[1672701983425,3.08685788,1216.3,1216.2,27.45174184]
[1672701984280,3.08685788,1216.3,1216.2,27.44801394]
[1672701987883,3.08685788,1216.3,1216.2,28.86501394]
[1672701990694,0.01013851,1216.3,1216.2,32.64298701]
[1672701991311,3.69206094,1216.4,1216.2,32.64298701]
[1672701992274,0.01013851,1216.3,1216.2,32.64298701]
[1672701992696,3.70219945,1216.3,1216.2,32.64298701]
[1672701993537,0.01013851,1216.3,1216.2,32.64298701]
[1672701994311,3.69206094,1216.4,1216.2,32.64298701]
[1672701998710,3.69206094,1216.3,1216.2,32.64298701]
[1672701998879,3.75806094,1216.4,1216.2,32.64298701]
[1672701999248,3.69206094,1216.4,1216.2,32.64298701]
[1672702000453,3.07511597,1216.3,1216.2,32.64298701]
[1672702000663,3.75806094,1216.4,1216.2,32.64298701]
[1672702000927,3.07510683,1216.3,1216.2,32.64298701]
[1672702001578,3.75806094,1216.4,1216.2,32.64298701]
[1672702001896,3.07497069,1216.3,1216.2,32.64298701]
[1672702002045,3.07497069,1216.3,1216.2,28.86501394]
[1672702002255,3.75806094,1216.4,1216.2,28.86501394]
[1672702002520,3.69206094,1216.4,1216.2,28.86501394]
[1672702003312,3.69206094,1216.3,1216.2,20.64268394]
[1672702003523,3.69206094,1216.3,1216.2,28.86501394]
[1672702004776,3.69206094,1216.3,1216.2,28.86137159]
[1672702005931,4.30737698,1216.3,1216.2,11.00001159]
[1672702006367,4.37337698,1216.4,1216.2,11.00001159]
[1672702006578,7.37967542,1216.4,1216.2,16.22234159]
[1672702006820,7.37967542,1216.4,1216.2,8.00001159]
[1672702006983,3.68823913,1216.3,1216.2,16.22234159]
[1672702008974,3.68823913,1216.3,1216.2,24.44467159]
[1672702009463,3.68823913,1216.3,1216.2,16.22234159]
[1672702010084,3.68823913,1216.3,1216.2,24.44467159]
[1672702010614,3.68823913,1216.3,1216.2,16.22234159]
[1672702011663,3.68823913,1216.3,1216.2,24.44467159]
[1672702013138,3.68823913,1216.3,1216.2,16.22234159]
[1672702015533,3.68823913,1216.3,1216.2,24.44467159]
[1672702015929,3.68823913,1216.3,1216.2,16.22234159]
[1672702016150,3.68823913,1216.3,1216.2,24.44467159]
[1672702019291,3.68823913,1216.3,1216.2,16.22234159]
[1672702019499,3.68823913,1216.3,1216.2,16.53001184]
[1672702020367,3.68823913,1216.3,1216.2,24.75234184]
[1672702029105,3.68823913,1216.3,1216.2,24.74873796]
[1672702033116,3.07414216,1216.3,1216.2,24.74873796]
[1672702036068,5.53330205,1216.3,1216.2,33.07467163]
[1672702036217,2.52515989,1216.4,1216.3,1.2248532]
[1672702036425,2.45915989,1216.4,1216.3,9.79471434]
[1672702036636,5.59930205,1216.5,1216.3,38.87777808]
[1672702036847,5.53330205,1216.5,1216.4,2.84]
[1672702037117,5.53330205,1216.5,1216.4,30.50291]
[1672702037266,5.53330205,1216.5,1216.4,30.58465796]
[1672702037470,5.53330205,1216.5,1216.4,35.43629677]
[1672702038535,2.45915989,1216.5,1216.4,35.43629677]
[1672702039333,5.59930205,1216.6,1216.4,35.43629677]
[1672702039538,5.53330205,1216.6,1216.5,4.425]
[1672702039752,5.53330205,1216.6,1216.5,29.0859]
[1672702039921,5.53330205,1216.6,1216.5,29.16764796]
[1672702040565,2.45915989,1216.6,1216.5,29.16764796]
[1672702041217,3.07414216,1216.6,1216.5,29.16764796]
[1672702042689,5.52778261,1216.6,1216.5,29.16764796]
[1672702043023,5.52778507,1216.6,1216.5,29.16764796]
[1672702044538,2.45364291,1216.6,1216.5,29.16764796]
[1672702047275,2.45364291,1216.6,1216.5,30.62675171]
[1672702047496,13.27648507,1216.7,1216.6,4.0]
[1672702047705,5.52778507,1216.7,1216.6,28.65886]
[1672702047919,3.14014216,1216.8,1216.7,4.0]
[1672702048107,0.066,1216.9,1216.7,15.87922642]
[1672702048321,3.13173582,1217.2,1216.9,4.0]
[1672702048656,3.13173582,1217.3,1217.0,31.79962114]
[1672702048845,3.06573582,1217.3,1217.0,31.8813691]
[1672702049264,3.06573582,1217.3,1217.0,36.61964044]
[1672702049522,3.06573582,1217.3,1217.2,24.64671]
[1672702049733,3.06573582,1217.3,1217.2,26.06839325]
[1672702049947,3.06573582,1217.3,1217.2,26.14045796]
[1672702050138,3.06573582,1217.3,1217.2,27.40694629]
[1672702050960,3.13173582,1217.4,1217.2,27.40694629]
[1672702051180,3.06573582,1217.4,1217.2,27.40694629]
[1672702052774,12.4545205,1217.5,1217.2,27.40694629]
[1672702053109,12.3885205,1217.5,1217.2,27.40694629]
[1672702054100,3.06573582,1217.4,1217.2,17.92488796]
[1672702054525,12.4545205,1217.5,1217.2,17.92488796]
[1672702054771,12.3885205,1217.5,1217.2,17.92488796]
[1672702055003,12.3885205,1217.5,1217.2,26.14045796]
[1672702055313,7.06573582,1217.4,1217.2,1.49374796]
[1672702055465,7.06573582,1217.4,1217.2,1.412]
[1672702055672,15.27995582,1217.4,1217.2,1.412]
[1672702056057,23.49438582,1217.4,1217.2,1.412]
[1672702056405,15.27995582,1217.4,1217.2,1.412]
[1672702056662,33.3605442,1217.5,1217.2,1.412]
[1672702056874,25.0804542,1217.5,1217.2,1.412]
[1672702057157,25.0804542,1217.5,1217.2,9.62746]
[1672702057519,4.0,1217.4,1217.2,1.49374796]
[1672702057731,7.06573582,1217.4,1217.1,17.92806796]
[1672702057962,4.0,1217.4,1217.2,8.21554]
[1672702058178,4.932,1217.4,1217.2,0.08174796]
[1672702058391,4.932,1217.4,1217.1,13.64081]
[1672702058599,8.93516838,1217.5,1217.2,24.64641]
[1672702058911,9.32278468,1217.5,1217.4,16.42844]
[1672702059067,9.32278468,1217.5,1217.4,16.51018796]
[1672702059486,9.32278468,1217.5,1217.4,8.29596796]
[1672702061397,9.32278468,1217.5,1217.4,0.08174796]
[1672702061658,9.32278468,1217.5,1217.3,20.51062796]
[1672702062008,9.32278468,1217.5,1217.3,16.51062796]
[1672702063589,9.32278468,1217.5,1217.3,8.29617796]
[1672702064184,13.32278468,1217.5,1217.3,8.29617796]
[1672702064589,9.32278468,1217.5,1217.3,8.29617796]
[1672702065202,9.32278468,1217.5,1217.3,0.08174796]
[1672702065375,9.32278468,1217.5,1217.2,16.51201796]
[1672702066330,26.19074882,1217.5,1217.2,8.29674796]
[1672702066559,34.40429882,1217.5,1217.2,0.08174796]
[1672702066731,42.61784882,1217.5,1217.1,8.29785796]
[1672702067472,34.40415882,1217.5,1217.1,12.29785796]
[1672702067687,42.61770882,1217.5,1217.1,12.29785796]
[1672702068031,42.61770882,1217.5,1217.1,12.52753314]
[1672702068243,34.40415882,1217.5,1217.1,20.74378314]
[1672702068834,26.19060882,1217.5,1217.1,20.74378314]
[1672702069477,22.19060882,1217.5,1217.1,20.74378314]
[1672702070338,22.19060882,1217.5,1217.1,28.96003314]
[1672702073269,17.53633468,1217.5,1217.1,28.96003314]
[1672702074860,20.6020705,1217.5,1217.1,28.96003314]
[1672702075197,17.53633468,1217.5,1217.1,28.96003314]
[1672702075416,20.6020705,1217.5,1217.1,28.96003314]
[1672702080655,20.6020705,1217.5,1217.2,4.0]
[1672702080883,20.6020705,1217.5,1217.2,15.51148331]
[1672702081028,20.6020705,1217.5,1217.2,15.59323127]
[1672702081674,12.3885205,1217.5,1217.2,23.80880127]
[1672702082623,11.7718205,1217.5,1217.2,23.80880127]
[1672702083272,19.9853905,1217.5,1217.2,23.80880127]
[1672702084026,19.9853905,1217.5,1217.2,19.80880127]
[1672702084235,3.06573582,1217.4,1217.2,11.59323127]
[1672702086561,3.06573582,1217.3,1217.2,11.59323127]
[1672702087176,3.75423913,1217.4,1217.2,11.59323127]
[1672702087396,3.68823913,1217.4,1217.2,11.59323127]
[1672702088642,3.68823913,1217.3,1217.2,11.59323127]
[1672702090110,3.07597686,1217.3,1217.2,11.59323127]
[1672702090490,3.75423913,1217.4,1217.2,11.59323127]
[1672702090700,3.68823913,1217.4,1217.2,11.59323127]
[1672702092011,3.07599325,1217.3,1217.2,11.59323127]
[1672702092621,3.75423913,1217.4,1217.2,11.59323127]
[1672702092943,3.68823913,1217.4,1217.2,11.59323127]
[1672702093344,3.68823913,1217.3,1217.2,11.59323127]
[1672702097651,3.68823913,1217.3,1217.2,19.80880127]
[1672702097862,3.68823913,1217.3,1217.2,28.02437127]
[1672702100255,3.75423913,1217.4,1217.2,28.02437127]
[1672702100423,3.68823913,1217.4,1217.2,28.02437127]
[1672702100633,3.07669902,1217.3,1217.2,28.02437127]
[1672702100841,3.07669902,1217.3,1217.2,32.44937127]
[1672702107783,3.07669902,1217.3,1217.2,33.87037127]
[1672702118551,3.07669902,1217.3,1217.2,32.44537127]
[1672702125688,3.75423913,1217.4,1217.2,32.44537127]
[1672702125929,3.0757762,1217.3,1217.2,32.44537127]
[1672702127208,3.75423913,1217.4,1217.2,32.44537127]
[1672702127382,3.68823913,1217.4,1217.2,32.44537127]
[1672702128430,3.68823913,1217.3,1217.2,32.44537127]
[1672702128653,3.75423913,1217.4,1217.2,32.44537127]
[1672702128796,3.68823913,1217.4,1217.2,32.44537127]
[1672702129218,3.68823913,1217.3,1217.2,32.44537127]
[1672702129429,13.07946166,1217.5,1217.2,32.44537127]
[1672702129430,3.75423913,1217.4,1217.2,32.44537127]
[1672702129672,3.68823913,1217.4,1217.2,32.44537127]
[1672702130216,3.07642429,1217.3,1217.2,32.44537127]
[1672702130424,3.75423913,1217.4,1217.2,32.44537127]
[1672702130635,3.07654438,1217.3,1217.2,32.44537127]
[1672702149601,3.68823913,1217.3,1217.2,3.08174796]
[1672702149810,3.68823913,1217.3,1217.2,3.0]